bitfinex-derivatives/quotes_SOLF0:USTF0_20250907
["timestamp","ask_amount","ask_price","bid_price","bid_amount"]
[1757207536151,7.81,201.91,201.9,4.45472609]
[1757207538460,0.03638862,201.92,201.91,7.78]
[1757207538753,0.03638862,201.92,201.91,17.09624867]
[1757207538957,0.03638862,201.92,201.91,18.65127678]
[1757207551167,37.09502811,202.01,201.92,7.84]
[1757207551365,37.09502811,202.01,201.94,9.39502811]
[1757207551564,37.09502811,202.01,201.95,9.31624867]
[1757207551765,29.67502811,202.01,201.96,17.15624867]
[1757207551965,7.42,202.0,201.97,9.31624867]
[1757207552165,29.67502811,202.01,201.98,4.45472609]
[1757207552368,7.42,202.0,201.99,4.45472609]
[1757207562474,131.58,202.0,201.99,4.45472609]
[1757207563773,131.58,202.0,201.96,0.03774882]
[1757207563978,131.58,202.0,201.97,7.84]
[1757207565374,124.16,202.0,201.97,7.84]
[1757207565574,7.42,201.99,201.97,7.84]
[1757207571180,7.42,201.99,201.96,8.12774882]
[1757207571376,7.42,201.99,201.97,4.46799228]
[1757207571680,7.42,201.99,201.96,8.12774882]
[1757207571876,7.42,201.99,201.97,4.46781606]
[1757207572078,7.42,201.99,201.96,8.12774882]
[1757207572280,7.42,201.99,201.97,4.46781606]
[1757207572583,7.42,201.99,201.96,8.12774882]
[1757207572780,7.42,201.99,201.97,4.46766933]
[1757207572971,7.42,201.99,201.96,8.12774882]
[1757207573176,7.42,201.99,201.97,4.46766933]
[1757207573372,7.42,201.99,201.96,8.12774882]
[1757207573677,124.16,202.0,201.97,4.46751724]
[1757207573979,124.16,202.0,201.98,4.46751724]
[1757207573980,9.60502811,201.99,201.98,4.46751724]
[1757207576084,9.60502811,201.99,201.96,0.03774882]
[1757207576280,9.60502811,201.97,201.96,0.03774882]
[1757207576479,133.16502811,201.97,201.96,0.03774882]
[1757207583588,134.03962025,201.97,201.96,0.03774882]
[1757207583793,134.03962025,201.97,201.96,4.5026021]
[1757207585390,134.03962025,201.97,201.96,4.50310001]
[1757207586893,149.40962025,201.97,201.79,8.09]
[1757207587197,8.19962025,201.92,201.81,8.09]
[1757207587398,20.56,201.91,201.83,8.09]
[1757207587695,20.56,201.91,201.85,8.09]
[1757207587896,26.33,201.91,201.86,4.78961271]
[1757207588096,26.33,201.91,201.88,8.09]
[1757207588596,26.33,201.91,201.8,2.42962025]
[1757207588791,26.33,201.91,201.82,8.09]
[1757207588996,26.33,201.91,201.84,8.09]
[1757207589297,26.33,201.91,201.85,4.64396499]
[1757207589493,5.77,201.91,201.87,8.09]
[1757207589795,22.08,201.9,201.89,8.09]
[1757207589986,22.08,201.9,201.89,12.73396499]
[1757207592897,5.77,201.95,201.89,12.73396499]
[1757207593195,42.9,201.94,201.89,8.09]
[1757207593686,5.77,201.93,201.89,8.09]
[1757207593886,5.77,201.93,201.9,4.64079258]
[1757207594093,5.77,201.93,201.89,8.09]
[1757207594293,75.48,201.92,201.9,4.64043416]
[1757207594597,81.25,201.92,201.89,8.09]
[1757207594797,81.25,201.92,201.9,4.64019701]
[1757207594996,81.25,201.92,201.89,8.09]
[1757207595292,81.25,201.92,201.9,4.64019701]
[1757207595596,81.25,201.92,201.89,8.09]
[1757207595797,81.25,201.92,201.9,4.63964945]
[1757207595994,81.25,201.92,201.89,8.09]
[1757207596190,81.25,201.92,201.9,4.63964945]
[1757207596396,81.25,201.92,201.89,8.09]
[1757207596695,75.48,201.92,201.9,12.72928617]
[1757207596891,75.48,201.92,201.9,8.09]
[1757207597296,81.25,201.92,201.9,8.09]
[1757207598598,75.48,201.92,201.84,8.09]
[1757207598793,75.48,201.92,201.86,8.09]
[1757207599000,75.48,201.92,201.88,7.82]
[1757207599200,5.79,201.91,201.89,4.40228603]
[1757207599394,5.79,201.91,201.9,4.40228603]
[1757207599900,5.79,201.91,201.9,4.40183743]
[1757207602804,75.48,201.92,201.88,7.82]
[1757207602998,75.48,201.92,201.89,4.40110711]
[1757207603198,2.42962025,201.96,201.88,7.82]
[1757207603404,5.79,201.94,201.89,4.40087983]
[1757207603605,5.79,201.94,201.84,7.82]
[1757207603807,5.79,201.94,201.86,7.82]
[1757207604007,34.89,201.94,201.88,7.82]
[1757207605506,81.81,201.94,201.88,7.82]
[1757207606802,76.02,201.94,201.88,7.82]
[1757207607013,5.79,201.93,201.88,7.82]
[1757207607408,5.79,201.93,201.84,7.82]
[1757207607707,5.79,201.93,201.86,7.82]
[1757207608008,81.81,201.94,201.88,7.82]
[1757207610415,5.78,201.93,201.88,7.82]
[1757207610613,76.02,201.94,201.88,7.82]
[1757207611015,5.78,201.93,201.88,7.82]
[1757207611214,5.78,201.93,201.84,7.82]
[1757207611414,5.78,201.93,201.86,7.82]
[1757207611617,5.78,201.93,201.87,4.40245362]
[1757207611909,5.78,201.93,201.88,4.40245362]
[1757207612114,5.78,201.93,201.87,7.82]
[1757207612413,76.02,201.94,201.88,4.40251491]
[1757207612713,5.78,201.93,201.84,7.82]
[1757207612913,5.78,201.93,201.86,7.82]
[1757207613116,5.78,201.93,201.87,4.40307423]
[1757207613305,76.02,201.94,201.88,4.40307423]
[1757207613512,5.78,201.93,201.84,7.82]
[1757207613711,5.78,201.93,201.86,7.82]
[1757207613916,5.78,201.93,201.87,9.01772452]
[1757207614118,76.02,201.94,201.88,4.40379401]
[1757207614312,5.78,201.93,201.89,4.40379401]
[1757207614522,5.78,201.93,201.9,4.40379401]
[1757207614812,5.78,201.93,201.87,7.82]
[1757207615007,76.02,201.94,201.88,4.40463146]
[1757207615205,76.02,201.94,201.89,12.22463146]
[1757207615408,76.02,201.94,201.9,4.40463146]
[1757207615616,76.02,201.94,201.89,7.82]
[1757207615808,76.02,201.94,201.9,4.40559689]
[1757207616008,5.78,201.93,201.89,7.82]
[1757207616205,5.78,201.93,201.9,4.40559688]
[1757207616414,5.78,201.93,201.89,7.82]
[1757207616614,76.02,201.94,201.9,4.40671357]
[1757207616817,76.02,201.94,201.89,7.82]
[1757207617016,76.02,201.94,201.9,4.40671357]
[1757207617314,5.78,201.93,201.89,7.82]
[1757207617514,5.78,201.93,201.9,4.40801261]
[1757207617714,76.02,201.94,201.91,4.40801261]
[1757207618012,5.78,201.93,201.89,7.82]
[1757207618216,5.78,201.93,201.9,4.40766218]
[1757207618414,76.02,201.94,201.91,4.40766218]
[1757207618612,5.78,201.93,201.89,7.82]
[1757207618820,5.78,201.96,201.9,4.40923756]
[1757207619014,123.1,201.97,201.91,4.40923756]
[1757207619214,123.1,201.97,201.92,4.40923756]
[1757207619415,5.78,201.96,201.9,7.82]
[1757207619616,123.1,201.97,201.91,4.41051326]
[1757207619918,123.1,201.97,201.92,4.41051326]
[1757207620117,5.78,201.96,201.89,7.82]
[1757207620415,5.78,201.96,201.9,9.03417866]
[1757207620614,5.78,201.96,201.91,4.41089979]
[1757207620808,123.1,201.97,201.92,4.41089979]
[1757207621014,5.78,201.96,201.89,7.82]
[1757207621214,5.78,201.96,201.9,9.03599444]
[1757207621415,123.1,201.97,201.91,4.41271557]
[1757207621617,5.78,201.96,201.92,4.41271557]
[1757207621813,5.78,201.96,201.87,7.82]
[1757207622010,5.78,201.96,201.89,7.82]
[1757207622314,5.78,201.96,201.9,9.03706546]
[1757207622514,5.78,201.96,201.91,12.23329605]
[1757207622716,123.08,201.95,201.93,7.82]
[1757207622914,128.86,201.95,201.94,4.41329605]
[1757207623808,123.08,201.95,201.86,2.42962025]
[1757207624010,123.08,201.95,201.88,7.82]
[1757207624321,123.08,201.95,201.89,9.03707487]
[1757207624517,5.78,201.94,201.91,7.82]
[1757207624818,5.78,201.94,201.92,4.4132424]
[1757207625020,5.78,201.94,201.93,4.4132424]
[1757207628225,123.08,201.95,201.88,7.82]
[1757207628420,2.42962025,201.93,201.89,9.04335709]
[1757207628621,2.42962025,201.93,201.9,4.41631111]
[1757207628820,5.78,201.92,201.91,4.41631111]
[1757207631522,5.78,201.92,201.91,4.41914731]
[1757207638037,5.81213776,201.94,201.91,12.60914731]
[1757207638237,123.04,201.93,201.92,12.60914731]
[1757207640838,128.82,201.93,201.92,4.41914731]
[1757207645537,130.37529282,201.93,201.92,4.41914731]
[1757207652758,128.82,201.93,201.92,4.41914731]
[1757207652952,130.37529282,201.93,201.92,4.41914731]
[1757207653851,124.59529282,201.93,201.85,1.55529282]
[1757207654047,7.33529282,201.91,201.86,9.04773187]
[1757207654355,122.98,201.9,201.88,8.19]
[1757207654554,122.98,201.9,201.89,12.60770155]
[1757207660559,128.76,201.9,201.89,12.60770155]
[1757207660957,122.98,201.9,201.89,12.60770155]
[1757207661354,128.76,201.9,201.89,12.60770155]
[1757207662362,128.76,201.9,201.89,4.41770155]
[1757207663865,128.76,201.9,201.89,9.04809944]
[1757207667168,5.78,201.9,201.89,9.04809944]
[1757207667361,128.72,201.9,201.89,9.04809944]
[1757207669667,122.94,201.9,201.89,16.72809944]
[1757207670865,5.79,201.93,201.9,7.68]
[1757207671066,122.92,201.92,201.91,16.74108094]
[1757207671769,5.79,201.93,201.91,16.74108094]
[1757207671969,122.9,201.92,201.91,7.68]
[1757207672171,122.9,201.92,201.91,16.74031812]
[1757207674468,128.69,201.92,201.91,4.63091574]
[1757207674667,128.69,201.92,201.91,9.05925309]
[1757207676672,122.9,201.92,201.91,16.73925309]
[1757207676971,128.69,201.92,201.91,9.05925309]
[1757207678066,128.69,201.92,201.91,9.05834289]
[1757207678572,128.65,201.92,201.91,9.05834289]
[1757207681874,1.55529282,201.95,201.91,16.73834289]
[1757207682068,128.65,201.94,201.92,9.05834289]
[1757207682268,128.65,201.94,201.93,9.05834289]
[1757207683777,128.65,201.94,201.93,4.42742715]
[1757207685474,1.55529282,201.96,201.94,7.68]
[1757207685475,122.84,201.96,201.94,7.68]
[1757207685675,122.84,201.96,201.95,9.05476632]
[1757207686175,128.63,201.96,201.95,9.05476632]
[1757207687575,122.84,201.96,201.95,16.73476632]
[1757207693874,122.84,201.96,201.95,12.10742715]
[1757207694680,5.78,202.02,201.95,12.07742715]
[1757207694877,122.76,202.01,201.97,1.55529282]
[1757207695078,61.26,202.01,201.97,1.55529282]
[1757207695277,61.26,202.01,201.98,4.4083455]
[1757207695278,61.29706828,202.01,201.98,4.4083455]
[1757207695579,5.78,202.0,201.97,9.23762723]
[1757207695878,61.29706828,202.01,201.97,9.23762723]
[1757207696072,5.78,202.0,201.97,9.23762723]
[1757207696278,61.29706828,202.01,201.97,9.23762723]
[1757207696478,61.29706828,202.01,201.97,7.68233441]
[1757207696875,61.29706828,202.01,201.97,9.23762723]
[1757207697383,5.78,202.0,201.97,0.03233441]
[1757207697579,61.29706828,202.01,201.97,0.03233441]
[1757207698278,5.78,202.0,201.97,0.03233441]
[1757207698474,61.29706828,202.01,201.97,0.03233441]
[1757207698679,5.78,202.0,201.97,0.03233441]
[1757207698974,5.78,202.0,201.97,1.58762723]
[1757207699275,5.78,202.0,201.97,9.23762723]
[1757207699480,61.29706828,202.01,201.97,9.23762723]
[1757207699679,61.29706828,202.01,201.97,1.58762723]
[1757207699881,5.78,202.0,201.97,1.58762723]
[1757207700580,61.29706828,202.01,201.97,1.58762723]
[1757207700781,5.78,202.0,201.97,1.58762723]
[1757207701674,5.78,202.0,201.97,9.23762723]
[1757207703578,5.78,202.0,201.98,9.20529282]
[1757207703782,5.78,202.0,201.99,4.40207476]
[1757207704483,5.81706828,202.01,201.99,12.05207476]
[1757207704783,0.03706828,202.01,202.0,13.606144]
[1757207705683,0.03706828,202.01,202.0,12.05085118]
[1757207713091,5.81706828,202.01,202.0,4.40085118]
[1757207713295,0.03706828,202.01,201.97,0.03233441]
[1757207713589,5.78,202.0,201.98,4.4001246]
[1757207713790,0.03706828,202.01,201.97,0.03233441]
[1757207713990,0.03706828,202.01,201.98,4.40012495]
[1757207714190,5.78,202.0,201.97,0.03233441]
[1757207714385,0.03706828,202.01,201.98,4.40071257]
[1757207714586,5.78,202.0,201.97,0.03233441]
[1757207714793,0.03706828,202.01,201.98,4.40071257]
[1757207714992,5.78,202.0,201.97,0.03233441]
[1757207715192,0.03706828,202.01,201.98,4.40133365]
[1757207715393,0.03706828,202.01,201.97,0.03233441]
[1757207715593,5.78,202.0,201.98,4.40141183]
[1757207715789,5.78,202.0,201.97,0.03233441]
[1757207715985,0.03706828,202.01,201.98,4.40142046]
[1757207716194,5.78,202.0,201.97,0.03233441]
[1757207716495,5.78,202.0,201.98,4.40169485]
[1757207716698,5.78,202.0,201.97,0.03233441]
[1757207716996,0.03706828,202.01,201.98,4.40169485]
[1757207717195,5.78,202.0,201.97,0.03233441]
[1757207717391,0.03706828,202.01,201.98,4.40205012]
[1757207717599,0.03706828,202.01,201.97,0.03233441]
[1757207717791,0.03706828,202.01,201.98,4.4020451]
[1757207718097,5.78,202.0,201.97,7.68233441]
[1757207718289,0.03706828,202.01,201.98,4.40233546]
[1757207718495,5.78,202.0,201.97,7.68233441]
[1757207718795,5.78,202.0,201.98,4.40246044]
[1757207718996,0.03706828,202.01,201.97,7.68233441]
[1757207719196,5.78,202.0,201.98,4.40280818]
[1757207719392,5.78,202.0,201.97,7.68233441]
[1757207719593,5.78,202.0,201.98,4.40294367]
[1757207719789,5.78,202.0,201.97,7.68233441]
[1757207719987,5.78,202.0,201.98,4.40294367]
[1757207720192,5.78,202.0,201.97,7.68233441]
[1757207720396,5.78,202.0,201.98,4.40335457]
[1757207720694,5.78,202.0,201.97,7.68233441]
[1757207720896,5.78,202.0,201.98,4.40349937]
[1757207721094,5.78,202.0,201.97,7.68233441]
[1757207721295,5.78,202.0,201.98,4.40382829]
[1757207721497,5.78,202.0,201.97,7.68233441]
[1757207721698,5.78,202.0,201.98,4.40398058]
[1757207721896,5.78,202.0,201.97,7.68233441]
[1757207722096,5.78,202.0,201.98,4.40398058]
[1757207722297,5.78,202.0,201.99,4.40470246]
[1757207722794,0.03706828,202.01,202.0,8.1]
[1757207723499,5.81706828,202.01,201.98,8.1]
[1757207723700,5.81706828,202.01,201.99,4.40550829]
[1757207723900,5.81706828,202.01,201.98,8.1]
[1757207724100,5.78,202.0,201.99,4.40550829]
[1757207730199,5.78,202.0,201.99,9.04332248]
[1757207731304,0.03706828,202.01,201.99,9.04332248]
[1757207731505,5.82706828,202.01,202.0,4.40550829]
[1757207740213,5.82706828,202.01,201.97,0.03233441]
[1757207740413,5.79,201.99,201.98,4.41782925]
[1757207741413,5.79,201.99,201.97,0.03233441]
[1757207741810,14.14252622,201.99,201.97,0.03233441]
[1757207742008,14.14252622,201.98,201.97,0.03233441]
[1757207743705,5.79,201.98,201.97,0.03233441]
[1757207743910,5.79,201.98,201.82,332.88]
[1757207743911,15.37,201.98,201.88,8.1]
[1757207744211,5.79,201.94,201.88,8.1]
[1757207744409,14.13373636,201.94,201.82,8.1]
[1757207744615,5.79,201.92,201.82,8.1]
[1757207745008,5.79,201.91,201.82,8.1]
[1757207745214,0.03745933,201.89,201.82,8.1]
[1757207748724,5.82745933,201.89,201.82,8.1]
[1757207756425,5.79,201.88,201.82,8.1]
[1757207762924,0.03745933,201.89,201.82,8.1]
[1757207764029,5.82745933,201.89,201.82,8.1]
[1757207767426,7.38337096,201.89,201.82,9.65591163]
[1757207768730,1.55591163,201.87,201.82,9.65591163]
[1757207770530,1.55591163,201.87,201.82,1.55591163]
[1757207770925,1.55591163,201.87,201.83,7.91]
[1757207771330,1.55591163,201.87,201.82,1.55591163]
[1757207772232,1.55591163,201.87,201.83,7.91]
[1757207772733,7.34591163,201.88,201.83,7.91]
[1757207772932,7.34591163,201.88,201.82,1.55591163]
[1757207773534,1.55591163,201.88,201.83,7.91]
[1757207773835,1.55591163,201.88,201.82,1.55591163]
[1757207774134,1.55591163,201.88,201.83,7.91]
[1757207774335,0.03745933,201.89,201.84,1.55591163]
[1757207774537,0.03745933,201.89,201.86,1.55591163]
[1757207774734,7.34591163,201.91,201.77,7.91]
[1757207774938,0.03289703,201.9,201.84,7.91]
[1757207775339,7.34591163,201.91,201.84,7.91]
[1757207775533,0.03580507,201.89,201.84,7.91]
[1757207775740,0.03580507,201.89,201.83,1.55591163]
[1757207775939,0.03580507,201.89,201.84,7.91]
[1757207777435,0.03580507,201.89,201.85,1.55591163]
[1757207777642,0.03580507,201.89,201.86,7.91]
[1757207778043,0.03580507,201.89,201.85,1.55591163]
[1757207778243,0.03580507,201.89,201.86,7.91]
[1757207778543,0.03580507,201.89,201.85,1.55591163]
[1757207778746,0.03580507,201.89,201.86,7.91]
[1757207779043,0.03580507,201.89,201.85,1.55591163]
[1757207779238,0.03580507,201.89,201.86,7.53]
[1757207779541,0.03580507,201.89,201.88,7.53]
[1757207783651,0.03580507,201.89,201.79,4.4588]
[1757207783652,0.03580507,201.89,201.77,7.53]
[1757207783853,0.03580507,201.89,201.84,1.55591163]
[1757207784053,5.77,201.91,201.85,7.53]
[1757207784247,0.03154868,201.89,201.84,1.55591163]
[1757207784555,0.03154868,201.89,201.85,7.53]
[1757207784751,0.03154868,201.89,201.84,1.55591163]
[1757207784949,0.03154868,201.89,201.85,7.53]
[1757207785143,0.03154868,201.89,201.84,1.55591163]
[1757207785851,0.03154868,201.89,201.85,7.53]
[1757207786353,0.03154868,201.89,201.86,7.53]
[1757207786953,0.03154868,201.89,201.85,1.55591163]
[1757207787155,0.03154868,201.89,201.86,7.53]
[1757207787452,0.03154868,201.89,201.85,1.55591163]
[1757207787654,0.03154868,201.89,201.86,7.53]
[1757207788556,0.03154868,201.89,201.85,1.55591163]
[1757207789147,0.03154868,201.89,201.86,7.53]
[1757207789754,5.81154868,201.89,201.86,7.53]
[1757207790855,5.81154868,201.89,201.85,1.55591163]
[1757207791055,5.81154868,201.89,201.86,7.53]
[1757207791958,0.03154868,201.89,201.86,7.53]
[1757207792161,5.78,201.88,201.85,9.08591163]
[1757207792556,5.78,201.88,201.86,7.53]
[1757207792950,7.33591163,201.88,201.82,7.53]
[1757207793555,0.03677064,201.87,201.81,1.55591163]
[1757207793761,5.81677064,201.87,201.81,7.53]
[1757207794064,5.78,201.86,201.82,7.53]
[1757207794363,1.55591163,201.88,201.82,7.53]
[1757207794563,0.03809292,201.86,201.82,7.53]
[1757207794860,5.78,201.85,201.82,7.53]
[1757207795860,5.78,201.85,201.8,1.55591163]
[1757207796061,5.78,201.85,201.82,7.53]
[1757207798165,0.03809292,201.86,201.82,7.53]
[1757207798461,1.59400455,201.86,201.81,7.53]
[1757207798964,5.78,201.85,201.81,7.53]
[1757207799164,1.59400455,201.86,201.81,7.53]
[1757207799361,5.78,201.85,201.81,7.53]
[1757207799759,7.37400455,201.86,201.8,9.08591163]
[1757207801267,7.37400455,201.86,201.8,7.53]
[1757207802764,1.55591163,201.82,201.76,7.53]
[1757207802962,5.78,201.83,201.76,9.08591163]
[1757207803166,5.78,201.83,201.78,7.53]
[1757207803366,0.03122457,201.82,201.77,7.53]
[1757207803766,0.03122457,201.82,201.76,1.55591163]
[1757207803968,0.03122457,201.82,201.78,7.53]
[1757207804168,0.03122457,201.82,201.77,7.53]
[1757207804566,0.03122457,201.82,201.76,1.55591163]
[1757207804773,0.03122457,201.82,201.77,4.42814143]
[1757207804971,0.03122457,201.82,201.76,1.55591163]
[1757207805272,0.03122457,201.82,201.78,7.53]
[1757207805472,0.03122457,201.82,201.77,7.53]
[1757207805673,0.03122457,201.82,201.76,1.55591163]
[1757207805967,0.03122457,201.82,201.77,4.42763224]
[1757207806167,0.03122457,201.82,201.76,1.55591163]
[1757207806372,0.03122457,201.82,201.78,7.53]
[1757207806575,0.03122457,201.82,201.77,7.53]
[1757207806870,0.03122457,201.82,201.79,7.53]
[1757207807075,0.03122457,201.82,201.8,1.55591163]
[1757207807273,0.03122457,201.82,201.81,7.53]
[1757207808274,0.03122457,201.82,201.81,11.95418339]
[1757207809574,0.03122457,201.82,201.81,13.51009502]
[1757207812377,0.03122457,201.82,201.81,11.95418339]
[1757207813880,0.03122457,201.82,201.81,7.53]
[1757207817876,0.03122457,201.82,201.81,9.08591163]
[1757207821183,0.03122457,201.82,201.81,7.53]
[1757207824980,0.03122457,201.82,201.81,9.08591163]
[1757207827484,0.03122457,201.82,201.81,7.53]
[1757207835687,0.03122457,201.82,201.76,2.43164665]
[1757207835989,0.03122457,201.82,201.78,7.79]
[1757207835990,5.81122457,201.82,201.78,7.79]
[1757207836184,5.81122457,201.82,201.76,2.43164665]
[1757207836384,5.78,201.81,201.78,7.79]
[1757207836785,5.78,201.81,201.76,2.43164665]
[1757207836983,5.78,201.81,201.77,7.79]
[1757207837188,5.78,201.81,201.76,2.43164665]
[1757207837592,5.78,201.81,201.77,7.79]
[1757207837794,5.78,201.81,201.76,2.43164665]
[1757207838096,5.78,201.81,201.77,7.79]
[1757207838293,5.78,201.81,201.76,2.43164665]
[1757207838792,5.78,201.81,201.77,7.79]
[1757207838986,5.78,201.81,201.76,2.43164665]
[1757207839194,0.03122457,201.82,201.76,2.43164665]
[1757207839390,5.81122457,201.82,201.76,9.93164665]
[1757207843897,5.81122457,201.82,201.77,4.44344396]
[1757207844194,5.78,201.81,201.74,7.5]
[1757207844396,5.78,201.81,201.75,4.44332578]
[1757207844694,5.78,201.81,201.77,7.5]
[1757207844894,0.03122457,201.82,201.77,7.5]
[1757207845298,5.78,201.81,201.77,7.5]
[1757207845899,0.03122457,201.82,201.77,7.5]
[1757207846197,5.78,201.81,201.77,7.5]
[1757207846392,0.03122457,201.82,201.77,7.5]
[1757207846598,5.78,201.81,201.74,7.5]
[1757207846794,5.78,201.81,201.71,226.68721942]
[1757207846795,5.78,201.81,201.75,11.94131716]
[1757207846993,5.78,201.81,201.72,7.5]
[1757207847189,5.78,201.81,201.74,7.5]
[1757207847394,5.78,201.81,201.75,4.44185321]
[1757207847601,5.78,201.81,201.74,7.5]
[1757207847899,5.78,201.81,201.75,4.4254626]
[1757207848098,5.78,201.81,201.74,7.5]
[1757207848400,5.78,201.81,201.75,4.4254626]
[1757207848600,5.78,201.81,201.74,7.5]
[1757207849002,5.78,201.81,201.75,4.4224632]
[1757207849203,5.78,201.81,201.74,7.5]
[1757207849403,5.78,201.81,201.75,4.42165666]
[1757207849604,5.78,201.81,201.74,7.5]
[1757207849799,5.78,201.81,201.76,7.5]
[1757207849999,5.78,201.81,201.74,7.5]
[1757207850200,5.78,201.81,201.77,7.5]
[1757207850399,5.78,201.81,201.74,7.5]
[1757207850593,5.78,201.81,201.76,7.5]
[1757207850801,5.78,201.81,201.74,7.5]
[1757207851105,5.78,201.81,201.75,4.42122122]
[1757207851294,5.78,201.81,201.74,7.5]
[1757207851498,5.78,201.81,201.76,7.5]
[1757207851803,5.78,201.81,201.74,7.5]
[1757207852102,5.78,201.81,201.75,4.42062466]
[1757207852403,5.78,201.81,201.74,7.5]
[1757207852701,5.78,201.81,201.75,4.42019012]
[1757207852896,5.78,201.81,201.74,7.5]
[1757207853097,5.78,201.81,201.75,4.42019012]
[1757207853292,5.78,201.81,201.74,7.5]
[1757207853496,5.78,201.81,201.75,4.41998453]
[1757207853800,5.78,201.81,201.74,7.5]
[1757207854103,5.78,201.81,201.75,4.41998453]
[1757207854305,5.78,201.81,201.74,7.5]
[1757207854607,0.03122457,201.82,201.75,4.41989672]
[1757207854802,5.78,201.81,201.74,7.5]
[1757207855102,5.78,201.81,201.75,11.91989672]
[1757207855405,5.78,201.81,201.75,7.5]
[1757207864613,0.03122457,201.82,201.75,7.5]
[1757207864801,5.78,201.81,201.75,7.5]
[1757207866609,0.03122457,201.82,201.75,7.5]
[1757207866809,0.03122457,201.82,201.77,9.93164665]
[1757207867112,63.85,201.87,201.79,7.5]
[1757207867312,0.03766201,201.82,201.79,7.5]
[1757207868217,0.03766201,201.82,201.78,7.5]
[1757207872517,0.03766201,201.82,201.79,4.42071315]
[1757207872718,0.03766201,201.82,201.78,7.9]
[1757207873020,0.03766201,201.82,201.79,4.42078049]
[1757207873220,0.03766201,201.82,201.78,7.9]
[1757207873517,0.03766201,201.82,201.8,7.9]
[1757207873821,0.03766201,201.82,201.78,7.9]
[1757207876723,0.03766201,201.82,201.79,4.42027531]
[1757207877020,0.03766201,201.82,201.8,10.33164665]
[1757207877323,0.03766201,201.82,201.81,7.9]
[1757207879920,0.03766201,201.82,201.81,12.31198894]
[1757207880721,0.03766201,201.82,201.81,7.9]
[1757207880922,0.03766201,201.82,201.81,12.31224167]
[1757207881125,0.03766201,201.82,201.81,7.9]
[1757207884129,0.03766201,201.82,201.81,12.31265968]
[1757207886433,0.03766201,201.82,201.81,14.74430633]
[1757207887930,5.83,201.93,201.82,7.9]
[1757207888231,5.83,201.93,201.85,7.9]
[1757207888427,5.83,201.93,201.87,2.43164665]
[1757207889523,5.83,201.93,201.88,7.9]
[1757207889724,5.83,201.97,201.88,7.9]
[1757207891528,5.83,201.97,201.91,1.55449912]
[1757207894430,127.63,201.97,201.91,1.55449912]
[1757207897938,338.97,201.98,201.92,7.9]
[1757207898136,5.83,201.97,201.93,1.55449912]
[1757207898336,8.34373636,202.0,201.82,81.9697]
[1757207898337,5.83,202.0,201.95,1.55449912]
[1757207898634,1.55449912,202.02,201.98,7.9]
[1757207898635,110.28,202.02,201.98,7.9]
[1757207898835,5.83,202.01,201.98,7.9]
[1757207901037,0.86209032,202.04,201.97,1.55449912]
[1757207901234,98.12,202.03,201.97,1.55449912]
[1757207901745,103.94,202.03,201.97,9.24449912]
[1757207906928,5.82,202.03,202.0,7.69]
[1757207907637,5.82,202.04,202.02,7.69]
[1757207908940,48.34,202.06,202.01,1.55449912]
[1757207909140,54.16,202.06,202.01,1.55449912]
[1757207909341,54.16,202.06,202.02,7.69]
[1757207909540,5.82,202.05,202.02,7.69]
[1757207910346,5.82,202.05,202.01,1.55449912]
[1757207910538,48.34,202.06,202.01,1.55449912]
[1757207910739,48.34,202.06,202.02,7.69]
[1757207910942,48.34,202.06,202.04,7.69]